Cogmind - Beta 16 @@@ ROGUE MODE // 2025.11.08 @ 20:58:17 Player: khaki-45e Result: Destroyed by Y-45 Defender with Heavy Assault Rifle Performance ------------- Evolutions (1) 500 Regions Visited (2) 400 Robots Destroyed (39) 195 Value Destroyed (760) 760 Prototype IDs (6) 120 Alien Tech Used (0) 0 Bonus (0) 0 TOTAL SCORE: 1975 Bonus ------- None Cogmind --------- Core Integrity 0/400 Matter 245/300 Energy 28/100 System Corruption 0% Temperature Cool (9) Movement Core (150) Ox2 Location -9/Materials Parts ------- > --- POWER (1) -------- (None) > --- PROPULSION (2) --- (None) > --- UTILITY (4) ------ Small Storage Unit Structural Scanner Transport Network Coupler > --- WEAPON (2) ------- Mini Grenade Launcher > --- INVENTORY (8) ---- Aluminum Leg Aluminum Leg Aluminum Leg Heat Sink Grenade Launcher Mining Claw Peak State ------------ > --- POWER ------------ Light Ion Engine > --- PROPULSION ------- Improved Hover Unit Improved Hover Unit > --- UTILITY ---------- Small Storage Unit Structural Scanner Transport Network Coupler > --- WEAPON ----------- Heavy EM Pulse Gun Heavy EM Pulse Gun > --- INVENTORY -------- Aluminum Leg Aluminum Leg Aluminum Leg Heat Sink Grenade Launcher Mini Grenade Launcher Mining Claw [Rating: 12] Favorites ----------- Power Light Ion Engine Engine Light Ion Engine Propulsion Aluminum Leg Leg Aluminum Leg Hover Unit Improved Hover Unit Utility Small Storage Unit Device Structural Scanner Storage Small Storage Unit Processor Transport Network Coupler Protection Light Armor Plating Weapon EM Pulse Gun Energy Gun EM Pulse Gun Ballistic Gun Light Assault Rifle Launcher Grenade Launcher Build | -11 -10 -9 ------- Run | Yrd Mat Mat Slots Evolved 2 | . . 2 Power . | . . . Propulsion . | . . . Utility 2 | . . 2 Weapon . | . . . Parts Attached 24 | 6 8 10 Power 4 | 1 2 1 Engine 4 | 1 2 1 Core . | . . . Reactor . | . . . Propulsion 7 | 2 2 3 Treads . | . . . Leg 5 | 2 2 1 Wheel . | . . . Hover 2 | . . 2 Flight . | . . . Utility 4 | 1 1 2 Device 1 | . . 1 Storage 1 | 1 . . Processor 1 | . 1 . Hackware . | . . . Protection 1 | . . 1 Artifact . | . . . Weapon 9 | 2 3 4 Energy Gun 5 | 1 2 2 Energy Cannon . | . . . Ballistic Gun 2 | 1 . 1 Ballistic Cannon . | . . . Launcher 2 | . 1 1 Special Weapon . | . . . Impact Weapon . | . . . Slashing Weapon . | . . . Piercing Weapon . | . . . Special Melee Weapon . | . . . Unidentified Prototypes . | . . . Parts Lost 9 | . . 9 Power 2 | . . 2 Propulsion 2 | . . 2 Utility 1 | . . 1 Weapon 4 | . . 4 Highest Loss Streak 5 | . . 5 To Critical Strikes . | . . . Average Backups 6 | 2 6 6 Power . | . . . Propulsion 2 | 1 1 2 Utility 1 | . 2 1 Weapon 1 | . 1 2 Tool/Special . | . . . Unused Backups 4 | . 1 3 Power . | . . . Propulsion 2 | . 1 1 Utility 1 | . . 1 Weapon 1 | . . 1 Tool/Special . | . . . Average Slot Usage (%) 94 | . 95 92 Engine 12 | . 14 10 Leg 25 | . 28 20 Device 3 | . . 11 Storage 12 | . 14 11 Processor 10 | . 9 11 Protection 2 | . . 8 Energy Gun 15 | . 19 7 Ballistic Gun 5 | . 5 5 Launcher 3 | . 2 5 Peak Build Rating 12 | 6 7 12 Average Rating 7 | 3 6 9 On Entrance 4 | . 6 7 Avg Prop Armor Cover (%) . | . . . Naked Turns . | . . . Heaviest Build 17 | 13 15 17 Greatest Support 20 | 20 20 20 Greatest Overweight (x) 2 | 2 . 1 Average Overweight (x) . | . . . Largest Inventory Capacity 8 | 8 8 8 Average Capacity 7 | 6 8 8 Most Carried 8 | 4 8 8 Average Carried 6 | 1 6 6 Final Capacity 8 | 8 8 8 Final Carried 8 | 1 8 6 Class Distribution -------------------- 86% | Mutant 13% | Scavenger-Mutant Dominant Class ---------------- Mutant | -10/Materials Mutant | -9/Materials Resources | -11 -10 -9 ----------- Run | Yrd Mat Mat Matter Collected 778 | 159 382 237 Remotely . | . . . Salvage Created 1045 | . 620 425 Parts 74 | . 44 30 Haulers Intercepted 4 | . 2 2 Recyclers Shooed . | . . . Parts Field Recycled . | . . . Retrieved Matter . | . . . Parts Self-Destructed . | . . . Prevented . | . . . Parts Restored . | . . . Kills | -11 -10 -9 ------- Run | Yrd Mat Mat Combat Hostiles Destroyed 21 | . 12 9 Guns 7 | . 7 . AOE 13 | . 5 8 Classes Destroyed 10 | . 9 1 Worker 2 | . 1 1 Builder 1 | . 1 . Tunneler 2 | . 2 . Hauler 4 | . 2 2 Recycler 2 | . 1 1 Operator 2 | . 1 1 Watcher 5 | . 3 2 Swarmer 8 | . 5 3 Grunt 11 | . 7 4 Sentry 2 | . . 2 Best Kill Streak 9 | . 9 5 Combat Bots Only 4 | . 3 4 Max Kills in Single Turn 3 | . 3 2 Gunslinging . | . . . Exploded 2 | . 2 2 Melee . | . . . Uniques/NPCs Destroyed . | . . . Combat | -11 -10 -9 -------- Run | Yrd Mat Mat Hostile Shots Fired 177 | . 70 107 Missed 62 | . 28 34 Hits 115 | . 42 73 Melee 4 | . . 4 Projectile 111 | . 42 69 Critical Strikes 4 | . 1 3 Damage Taken 1584 | . 471 1113 Core 520 | . 111 409 Absorbed by Shields . | . . . Core Remaining (%) 77 | 100 55 . Volleys Fired 125 | . 74 51 Largest 2 | . 2 2 Hottest 90 | . 80 90 Shots Fired 184 | . 128 56 Gun 156 | . 117 39 Cannon . | . . . Launcher 28 | . 11 17 Special . | . . . Kinetic 35 | . 31 4 Thermal 34 | . 34 . Explosive 28 | . 11 17 Electromagnetic 87 | . 52 35 Robot Hit Streak 15 | . 15 6 Robot Miss Streak 5 | . 5 3 Penetration Max . | . . . Secondary Targets . | . . . Shots Hit Robots 111 | . 75 36 Core Hits 60 | . 32 28 Critical Kills . | . . . Critical Parts Destroyed . | . . . Critical Strikes 4 | . 4 . Burn 3 | . 3 . Corrupt 1 | . 1 . Melee Attacks . | . . . Impact . | . . . Slashing . | . . . Piercing . | . . . Sneak Attacks . | . . . Combat Hostiles . | . . . Follow-up Attacks . | . . . Damage Inflicted 2491 | . 1337 1154 Guns 1191 | . 852 339 Cannons . | . . . Explosions 1300 | . 485 815 Melee . | . . . Ramming . | . . . Kinetic 204 | . 189 15 Thermal 412 | . 336 76 Explosive 1203 | . 464 739 Electromagnetic 672 | . 348 324 Impact . | . . . Slashing . | . . . Piercing . | . . . Highest Corruption . | . . . Average Corruption . | . . . Corruption Purged . | . . . Corruption Blocked . | . . . Overload Shots . | . . . Overflow Damage 12 | . 10 2 Projectiles . | . . . Explosions 12 | . 10 2 Melee . | . . . Knockbacks . | . . . Impact . | . . . Kinetic . | . . . Secondary . | . . . Self-Inflicted Damage 98 | . 39 59 Shots 6 | . 2 4 Rammed . | . . . Targets Rammed . | . . . Kicked . | . . . Crushed . | . . . Highest Temperature 255 | . 255 86 Average Temperature 45 | . 50 23 Received Heat Transfer 561 | . 195 366 Siege Activations . | . . . Martial Activations . | . . . Shielding Activations . | . . . Robots Disrupted . | . . . Combat Hostiles . | . . . Robots Corrupted 1 | . . 1 Combat Hostiles 1 | . . 1 Parts Fried 3 | . 1 2 Impact Corruptions . | . . . Robots Melted . | . . . Combat Hostiles . | . . . Parts Melted 3 | . 3 . Heat Transferred 1247 | . 1197 50 Parts Sabotaged . | . . . Parts Stolen . | . . . Parts Stripped . | . . . Power Chain Reactions 2 | . 1 1 Alert | -11 -10 -9 ------- Run | Yrd Mat Mat Maximum Alert Level 1 | . . 1 Low Security (%) 83 | 100 100 49 Level 1 16 | . . 50 Level 2 . | . . . Level 3 . | . . . Level 4 . | . . . Level 5 . | . . . High Security . | . . . Max Security . | . . . Peak Influence 332 | . 169 332 Initial 66 | . . 66 Average 101 | . 52 209 Influence Increases 951 | . 477 474 Destroy 0b10 Robot/C 420 | . 240 180 Destroy 0b10 Robot/NC 90 | . 55 35 Destroy Leader 108 | . 60 48 Successful Hack 44 | . 30 14 Disable Machine 75 | . . 75 Destroy Structure 154 | . 77 77 Lose Combat Pursuer 60 | . 15 45 Influence Decreases 755 | . 320 435 Entered New Map 91 | . . 91 Time Decay 574 | . 320 254 Lost Part 90 | . . 90 Squads Dispatched 5 | . 2 3 Investigation . | . . . Extermination . | . . . Reinforcement 5 | . 2 3 Assault . | . . . Garrison . | . . . Intercept . | . . . Searches Triggered . | . . . Construction Impeded . | . . . Haulers Reinforced . | . . . Active Scanning Responses . | . . . Cargo Convoy Interrupts . | . . . Stealth | -11 -10 -9 --------- Run | Yrd Mat Mat Distress Signals 4 | . 1 3 Communications Jammed . | . . . Distress Signals . | . . . Times Spotted 44 | . 23 21 Peak Tracking Total 7 | . 3 7 Tactical Retreats 4 | . 1 3 Traps | -11 -10 -9 ------- Run | Yrd Mat Mat Traps Triggered . | . . . Indirectly . | . . . Trap Hack Attempts . | . . . Triggered . | . . . Disarmed . | . . . Reprogrammed . | . . . Reused . | . . . Traps Extracted . | . . . Installed . | . . . Triggered . | . . . Machines | -11 -10 -9 ---------- Run | Yrd Mat Mat Machines Disabled 5 | . . 5 Max in Single Turn 2 | . . 2 Machines Repaired . | . . . Machines Dismantled . | . . . Machines Sabotaged . | . . . Overloaded Fab Kills . | . . . Hacking | -11 -10 -9 --------- Run | Yrd Mat Mat Machines Accessed 8 | . 6 2 Terminals 5 | . 4 1 Fabricators . | . . . Repair Stations . | . . . Recycling Units 2 | . 2 . Scanalyzers 1 | . . 1 Garrison Access . | . . . Total Hacks 14 | . 12 2 Successful 9 | . 7 2 Failed 5 | . 5 . Catastrophic 1 | . 1 . Database Lockouts . | . . . Manual . | . . . Terminals 9 | . 8 1 Fabricators . | . . . Repair Stations . | . . . Recycling Units 4 | . 4 . Scanalyzers 1 | . . 1 Garrison Access . | . . . Terminal Hacks 6 | . 5 1 Record 2 | . 2 . Robot Analysis 1 | . 1 . Prototype ID Bank 3 | . 2 1 Fabricator Hacks . | . . . Repair Station Hacks . | . . . Recycling Unit Hacks 2 | . 2 . Report Inventory 2 | . 2 . Scanalyzer 1 | . . 1 Retrieve Study 1 | . . 1 Garrison Access Hacks . | . . . Unauthorized Hacks . | . . . Terminals . | . . . Fabricators . | . . . Repair Stations . | . . . Recycling Units . | . . . Scanalyzers . | . . . Garrison Access . | . . . Data Cores Recovered . | . . . Used . | . . . Hacking Detections 5 | . 4 1 Full Trace Events 1 | . 1 . Feedback Events . | . . . Feedback Blocked . | . . . Robot Schematics Acquired . | . . . Robots Built . | . . . Authchips . | . . . Time . | . . . Total Robot Build Rating . | . . . Part Schematics Acquired . | . . . Parts Built . | . . . Authchips . | . . . Time . | . . . Total Part Build Rating . | . . . Part Studies Acquired 1 | . . 1 Parts Repaired . | . . . Time . | . . . Parts Recycled . | . . . Recycled Matter . | . . . Retrieved Matter . | . . . Retrieved Components . | . . . Parts Scanalyzed . | . . . Part Schematics Acquired . | . . . Parts Damaged . | . . . Bothacking | -11 -10 -9 ------------ Run | Yrd Mat Mat Used RIF Installer . | . . . Robots Hacked . | . . . Non-combat . | . . . Combat . | . . . Robot Hacks Applied . | . . . Relay Couplers Released . | . . . Fabnet Peak Effective % . | . . . Robots Rewired . | . . . Allies Hacked . | . . . Hacks Repelled . | . . . Allies | -11 -10 -9 -------- Run | Yrd Mat Mat Total Allies . | . . . Largest Group . | . . . Highest-Rated Group . | . . . Highest-Rated Ally . | . . . Total Orders . | . . . Ally Attacks . | . . . Total Damage . | . . . Kills . | . . . Allies Corrupted . | . . . Allies Melted . | . . . Intel | -11 -10 -9 ------- Run | Yrd Mat Mat Active Infowar (turns) 1307 | . 762 545 Structural 545 | . . 545 T.N.C. 1307 | . 762 545 Robot Analysis Total 1 | . 1 . Derelict Logs Recovered . | . . . Drone Launches . | . . . Drone Recoveries . | . . . Exploration | -11 -10 -9 ------------- Run | Yrd Mat Mat Turns Passed 1691 | 49 1097 545 Spaces Moved 1103 | 37 708 358 Core 25 | 23 . 2 Treads . | . . . Legs 1042 | 14 708 320 Wheels . | . . . Hover 36 | . . 36 Flight . | . . . Fastest Speed 50 | 50 120 56 Average Speed 117 | 98 120 113 Slowest Speed 150 | 150 120 120 Overloaded Moves . | . . . Propulsion Burnouts . | . . . Robots Hopped . | . . . Potential Cave-ins . | . . . Cave-ins Triggered . | . . . Exploration Rate (%) 45 | 3 86 48 Regions Visited 2 Branch Regions . Pre-discovered Areas . | . . . Known Exits Taken . | . . . Unknown Exits Taken 2 | 1 1 . Scrap Searched . | . . . Spaces Dug 7 | . . 7 Terrain Destroyed 169 | . 75 94 Melee . | . . . Projectile . | . . . AOE 169 | . 75 94 Terrain Rammed . | . . . Walls Destroyed . | . . . Machines Disabled . | . . . Actions | -11 -10 -9 --------- Run | Yrd Mat Mat Total 1320 | 49 831 440 Wait 22 | . 19 3 Move 1101 | 36 707 358 Hop . | . . . Pick Up 25 | 7 11 7 Fast Attach 3 | . 2 1 Attach 17 | 6 2 9 Detach 2 | . . 2 Swap 15 | . 10 5 Drop 10 | . 6 4 Fire 125 | . 74 51 Melee . | . . . Ram . | . . . Kick . | . . . Crush . | . . . Escape Stasis . | . . . Rewire . | . . . Trap . | . . . Miscellaneous . | . . . Route ------- -11/Scrapyard -10/Materials (discovered 4 exits: *Mat x3 / [*Min]) -9/Materials (discovered 2 exits: [*Mat] / [*Min]) History --------- Turn | Location | Event 10 | -11/Scrapyard | Discovered new exit (range 15) 50 | -11/Scrapyard | Entered Materials 301 | -10/Materials | Build established: Mutant 398 | -10/Materials | Discovered new exit (range 16) 614 | -10/Materials | Discovered new exit (range 16) 780 | -10/Materials | Discovered new exit (range 14) 930 | -10/Materials | Discovered new exit (range 7) 1147 | -10/Materials | Entered another Materials area 1147 | -9/Materials | Evolved 2 slots: Utility x2 1269 | -9/Materials | Discovered new exit (range 11) 1444 | -9/Materials | Discovered new exit (range 16) 1687 | -9/Materials | Core integrity fell below 50% 1691 | -9/Materials | Core integrity fell below 20% 1692 | -9/Materials | Destroyed by Y-45 Defender with Heavy Assault Rifle Last Messages --------------- K-01 Serf collects debris. K-01 Serf cleans the Fusion Modulator. O-16 Technician: "IFF HANDSHAKE FAILED. SECURING TERMINAL." K-01 Serf collects debris. O-16 Technician uses terminal to summon reinforcements. ALERT: Hostiles spotted, dispatching reinforcements to Terminal M012. O-16 Technician locks terminal. K-01 Serf collects debris. Dropped Hvy. Assault Rifle. Acquired Hvy. EM Pulse Gun. Lgt. Ion Engine destroyed. Hvy. EM Pulse Gun destroyed. Imp. Hover Unit+ destroyed. Hvy. EM Pulse Gun destroyed. Imp. Hover Unit+ destroyed. Critical hit (Burn: +37). G-34 Mercenary destroyed. L-31 Rogue destroyed. Map ----- +----------------------------------------------------+ | ??????????????????????????????????????? | | ????????????????????????????? ####### | | ???????????????????#################### | | ???????????????????############ | | ???????????##########!![[==#### ## | | ???????????##########!![[==#### ## | | ??????? #####"""""### #### ## | | ??????? #####""T""### ## ## | | ??????? # ## | | ??????? + ! # | | ??????? # ^# | | ??????? ### !! # | | ????????### o! """ """ """ ### + | | ????????### """ """ """ ###+## | | ?????##### """ """ """ # | | ??## ##### # / ! | | ??## [ # | | ??## ##### ####" ""####+###### ! | | ??## #### Y%Y ##"R""# ####### | | ??????### = ##""" # ???????##### | | ??????## [ ####### ??????????## | | ?###??### [[ ] ####### ??????????## | | ?###?####[ [[ ###???????????????## | | ?## ### ###???????????????## | | ?## Y = = ##???????????????## | | ?## ### %@ ###????????????##### | | ?###?#### ##??????? ##### | | ???????### # ##???????####### ##### | | ???????############???????## #### | | ????? # ####???????## ##?? | | ????? # ??"" !##?????????## ##?? | | ????? # """"" ##??######### ##?? | | ????? # """"" ##??######### ##?? | | ????? # """"" ##??## # ##?? | | ????? # """ ##??##""" # ##?? | | ????? # ##??##" # ##?? | | ?????## ##??##" # ##?? | | ####### ##??## $= # ##?? | | ###########+######### =# #### | | # # ##########+######+####### | | # " # [ *%= | | # """ / = | | # """ # | | # """ # ##########/############## | | # "" ## ## # # # ! " ######### | | # """ ## # # ### " ##??????? | | # "" ??## # ! [ " ##??????? | | # "" ??## + =* #= " ##??????? | | ??? "???## # =!# " ###??????? | | ??? ???## = = "####??????? | +----------------------------------------------------+ Best States ------------- Heat Dissipation 28 Energy Generation 10 Energy Capacity 250 Matter Stores 300 Matter Capacity 300 Sight Range 16 Terrain Scan Density 10 Armor Coverage 150 Evasion (%) 55 Item Schematics ----------------- None Robot Schematics ------------------ None Fabricated ------------ Nothing Repaired ---------- Nothing Studied --------- Imp. Hover Unit | -9/Materials | Hacked Alien Tech Used ----------------- None Achievements -------------- None Challenges ------------ None Game ------ Seed VampiricTimingDeflector Manual? 0 Play Time 00:27:24 Cumulative 18.2 hours Start 2025.11.08 @ 18:01:26 End 2025.11.08 @ 20:58:17 Sessions 2 Manual Loads 0 Difficulty Rogue Special Mode None Game No. 16 Rogue 16 Adventurer 0 Explorer 0 Win Type - Total 0 Types 0/0/0/0/0/0/0/0/0/0 Lore% 6 Gallery% 14 Achievement% 13 Wizard Run 0 Options --------- Layout 1 ASCII 0 Keyboard 0 Movement Mouse Keybinds 0 Fullscreen 2 Font 42/SmallcapsGlow Map View 59x39 Zoom Use 17% Tactical HUD 0 Map Filters NONE Filters NONE Steam 0 RUN: 674cd601-2e1b-4f64-9782-db949ffa817e